[Event "Titled Tuesday Blitz August 23 Early 2022"]
[White "Bykhovsky, Anatoly"]
[Black "Moroni, Luca Jr"]
[WhiteFideId "2806991"]
[BlackFideId "865834"]
[WhiteElo "2540"]
[BlackElo "2573"]
[Result "1/2-1/2"]
[Round "04"]
[TimeControl "180+1"]
[Date "2022.08.23"]
[WhiteClock "0:00:14"]
[BlackClock "0:00:08"]

1. d4 {[%clk 0:03:00]}  g6 {[%clk 0:02:59]} 2. e4 {[%clk 0:03:01]}  Bg7 {[%clk 0:03:00]} 3. Nc3 {[%clk 0:03:01]}  d6 {[%clk 0:03:01]} 4. f4 {[%clk 0:03:02]}  Nf6 {[%clk 0:03:00]} 5. Nf3 {[%clk 0:03:02]}  O-O {[%clk 0:03:00]} 6. Bd3 {[%clk 0:03:03]}  Nc6 {[%clk 0:02:58]} 7. O-O {[%clk 0:03:01]}  e5 {[%clk 0:02:58]} 8. dxe5 {[%clk 0:03:02]}  dxe5 {[%clk 0:02:58]} 9. f5 {[%clk 0:03:03]}  Qe7 {[%clk 0:02:43]} 10. Bg5 {[%clk 0:02:54]}  Nb4 {[%clk 0:02:41]} 11. Kh1 {[%clk 0:02:51]}  Nxd3 {[%clk 0:02:40]} 12. Qxd3 {[%clk 0:02:37]}  c6 {[%clk 0:02:37]} 13. Rad1 {[%clk 0:02:20]}  h6 {[%clk 0:02:27]} 14. Bh4 {[%clk 0:02:19]}  gxf5 {[%clk 0:02:03]} 15. exf5 {[%clk 0:02:18]}  e4 {[%clk 0:02:01]} 16. Bxf6 {[%clk 0:02:18]}  Qxf6 {[%clk 0:02:00]} 17. Nxe4 {[%clk 0:02:17]}  Qxf5 {[%clk 0:01:52]} 18. Nd4 {[%clk 0:01:46]}  Qg6 {[%clk 0:01:35]} 19. Ng3 {[%clk 0:01:31]}  Qxd3 {[%clk 0:01:28]} 20. Rxd3 {[%clk 0:01:32]}  Kh7 {[%clk 0:01:05]} 21. c3 {[%clk 0:01:22]}  c5 {[%clk 0:00:56]} 22. Ndf5 {[%clk 0:01:18]}  Be6 {[%clk 0:00:45]} 23. Nxg7 {[%clk 0:01:12]}  Kxg7 {[%clk 0:00:46]} 24. Nf5+ {[%clk 0:01:11]}  Kh7 {[%clk 0:00:45]} 25. Rh3 {[%clk 0:00:57]}  Bxf5 {[%clk 0:00:42]} 26. Rxf5 {[%clk 0:00:58]}  Rad8 {[%clk 0:00:42]} 27. Rhf3 {[%clk 0:00:58]}  Rd1+ {[%clk 0:00:31]} 28. Rf1 {[%clk 0:00:57]}  Rxf1+ {[%clk 0:00:31]} 29. Rxf1 {[%clk 0:00:56]}  Kg6 {[%clk 0:00:32]} 30. g3 {[%clk 0:00:56]}  Rd8 {[%clk 0:00:31]} 31. Rf2 {[%clk 0:00:55]}  f5 {[%clk 0:00:29]} 32. Kg2 {[%clk 0:00:56]}  h5 {[%clk 0:00:28]} 33. Kf3 {[%clk 0:00:54]}  Kg5 {[%clk 0:00:25]} 34. h4+ {[%clk 0:00:53]}  Kf6 {[%clk 0:00:26]} 35. Kf4 {[%clk 0:00:53]}  Rd1 {[%clk 0:00:24]} 36. Re2 {[%clk 0:00:53]}  Rf1+ {[%clk 0:00:24]} 37. Ke3 {[%clk 0:00:53]}  Ke5 {[%clk 0:00:22]} 38. Kd3+ {[%clk 0:00:51]}  Kd5 {[%clk 0:00:21]} 39. c4+ {[%clk 0:00:51]}  Kd6 {[%clk 0:00:21]} 40. Ke3 {[%clk 0:00:51]}  Ke5 {[%clk 0:00:21]} 41. Kd3+ {[%clk 0:00:52]}  Kf6 {[%clk 0:00:21]} 42. Ke3 {[%clk 0:00:52]}  b6 {[%clk 0:00:21]} 43. b3 {[%clk 0:00:52]}  Rg1 {[%clk 0:00:19]} 44. Kf4 {[%clk 0:00:50]}  Rf1+ {[%clk 0:00:19]} 45. Ke3 {[%clk 0:00:51]}  f4+ {[%clk 0:00:14]} 46. gxf4 {[%clk 0:00:50]}  Kf5 {[%clk 0:00:14]} 47. Rg2 {[%clk 0:00:50]}  Re1+ {[%clk 0:00:14]} 48. Kd2 {[%clk 0:00:46]}  Ra1 {[%clk 0:00:14]} 49. Kc3 {[%clk 0:00:42]}  Kxf4 {[%clk 0:00:12]} 50. Rg5 {[%clk 0:00:41]}  Rxa2 {[%clk 0:00:12]} 51. Rxh5 {[%clk 0:00:42]}  Kg4 {[%clk 0:00:11]} 52. Rh7 {[%clk 0:00:42]}  Ra1 {[%clk 0:00:11]} 53. h5 {[%clk 0:00:41]}  Kf5 {[%clk 0:00:11]} 54. Rg7 {[%clk 0:00:39]}  Rh1 {[%clk 0:00:07]} 55. Rf7+ {[%clk 0:00:35]}  Ke5 {[%clk 0:00:05]} 56. Rd7 {[%clk 0:00:34]}  Ke6 {[%clk 0:00:03]} 57. Rxa7 {[%clk 0:00:33]}  Kd6 {[%clk 0:00:02]} 58. Rh7 {[%clk 0:00:32]}  Rh3+ {[%clk 0:00:02]} 59. Kb2 {[%clk 0:00:32]}  Kc6 {[%clk 0:00:02]} 60. Rh6+ {[%clk 0:00:31]}  Kb7 {[%clk 0:00:02]} 61. Ka3 {[%clk 0:00:31]}  Ka6 {[%clk 0:00:02]} 62. Rh8 {[%clk 0:00:32]}  b5 {[%clk 0:00:02]} 63. cxb5+ {[%clk 0:00:27]}  Kxb5 {[%clk 0:00:02]} 64. h6 {[%clk 0:00:27]}  Kc6 {[%clk 0:00:03]} 65. h7 {[%clk 0:00:22]}  Kb7 {[%clk 0:00:03]} 66. Ka4 {[%clk 0:00:23]}  Rh5 {[%clk 0:00:02]} 67. Kb5 {[%clk 0:00:22]}  Rh3 {[%clk 0:00:02]} 68. Kxc5 {[%clk 0:00:22]}  Rh5+ {[%clk 0:00:02]} 69. Kb4 {[%clk 0:00:22]}  Rh1 {[%clk 0:00:02]} 70. Kc4 {[%clk 0:00:22]}  Rh2 {[%clk 0:00:03]} 71. b4 {[%clk 0:00:22]}  Rh1 {[%clk 0:00:03]} 72. Kd5 {[%clk 0:00:21]}  Rh2 {[%clk 0:00:04]} 73. Ke6 {[%clk 0:00:18]}  Rh1 {[%clk 0:00:04]} 74. Kf6 {[%clk 0:00:18]}  Rh2 {[%clk 0:00:05]} 75. Kg6 {[%clk 0:00:17]}  Rg2+ {[%clk 0:00:05]} 76. Kf7 {[%clk 0:00:17]}  Rh2 {[%clk 0:00:06]} 77. Ke6 {[%clk 0:00:17]}  Rh1 {[%clk 0:00:06]} 78. Kd5 {[%clk 0:00:17]}  Rh2 {[%clk 0:00:07]} 79. Kc5 {[%clk 0:00:14]}  Rh1 {[%clk 0:00:07]} 80. Kb5 {[%clk 0:00:15]}  Rh5+ {[%clk 0:00:07]} 81. Ka4 {[%clk 0:00:14]}  Rh1 {[%clk 0:00:08]} 82. Kb5 {[%clk 0:00:14]}  Rh5+ {[%clk 0:00:08]} 83. Ka4 {[%clk 0:00:14]}  Rh4 {[%clk 0:00:08]} 84. Ka5 {[%clk 0:00:14]}  Rh5+ {[%clk 0:00:08]} 85. Ka4 {[%clk 0:00:14]} 1/2-1/2


[Site "https://www.chess.com"]

[Event "Titled Tuesday Blitz August 23 Early 2022"]
[White "Chigaev, Maksim"]
[Black "Goryachkina, Aleksandra"]
[WhiteFideId "4108116"]
[BlackFideId "4147103"]
[WhiteElo "2487"]
[BlackElo "2426"]
[Result "1-0"]
[Round "04"]
[TimeControl "180+1"]
[Date "2022.08.23"]
[WhiteClock "0:00:14"]
[BlackClock "0:00:01"]

1. c4 {[%clk 0:02:59]}  e6 {[%clk 0:02:59]} 2. g3 {[%clk 0:02:59]}  d5 {[%clk 0:02:59]} 3. Bg2 {[%clk 0:03:00]}  Nf6 {[%clk 0:02:59]} 4. Nf3 {[%clk 0:03:00]}  Be7 {[%clk 0:02:59]} 5. O-O {[%clk 0:02:58]}  O-O {[%clk 0:02:59]} 6. b3 {[%clk 0:02:58]}  c5 {[%clk 0:02:40]} 7. cxd5 {[%clk 0:02:47]}  exd5 {[%clk 0:02:39]} 8. d4 {[%clk 0:02:42]}  Nc6 {[%clk 0:02:37]} 9. Bb2 {[%clk 0:02:40]}  Bg4 {[%clk 0:02:23]} 10. dxc5 {[%clk 0:02:38]}  Bxc5 {[%clk 0:02:18]} 11. Nc3 {[%clk 0:02:38]}  Re8 {[%clk 0:02:14]} 12. Rc1 {[%clk 0:02:37]}  Bf8 {[%clk 0:02:03]} 13. Nb5 {[%clk 0:02:19]}  a6 {[%clk 0:01:51]} 14. Bxf6 {[%clk 0:02:16]}  gxf6 {[%clk 0:01:48]} 15. Nbd4 {[%clk 0:02:15]}  Rc8 {[%clk 0:01:44]} 16. Qd2 {[%clk 0:01:57]}  Bg7 {[%clk 0:01:31]} 17. e3 {[%clk 0:01:49]}  Qd7 {[%clk 0:01:16]} 18. Nxc6 {[%clk 0:01:31]}  bxc6 {[%clk 0:01:13]} 19. Rc5 {[%clk 0:01:30]}  Bxf3 {[%clk 0:00:55]} 20. Bxf3 {[%clk 0:01:29]}  f5 {[%clk 0:00:53]} 21. Rfc1 {[%clk 0:01:12]}  Re6 {[%clk 0:00:41]} 22. Qd3 {[%clk 0:00:51]}  Rd6 {[%clk 0:00:18]} 23. Kg2 {[%clk 0:00:42]}  Rh6 {[%clk 0:00:08]} 24. h4 {[%clk 0:00:35]}  Rd6 {[%clk 0:00:07]} 25. Qxa6 {[%clk 0:00:27]}  Bf6 {[%clk 0:00:05]} 26. b4 {[%clk 0:00:19]}  f4 {[%clk 0:00:04]} 27. exf4 {[%clk 0:00:17]}  Bxh4 {[%clk 0:00:03]} 28. b5 {[%clk 0:00:15]}  Bxg3 {[%clk 0:00:01]} 29. fxg3 {[%clk 0:00:14]}  Rh6 {[%clk 0:00:01]} 30. g4 {[%clk 0:00:14]}  Qe7 {[%clk 0:00:01]} 31. Qxc8+ {[%clk 0:00:14]} 1-0


[Site "https://www.chess.com"]

[Event "Titled Tuesday Blitz August 23 Early 2022"]
[White "Fier, Alexandr"]
[Black "Paravyan, David"]
[WhiteFideId "2107139"]
[BlackFideId "4194985"]
[WhiteElo "2598"]
[BlackElo "2569"]
[Result "1/2-1/2"]
[Round "04"]
[TimeControl "180+1"]
[Date "2022.08.23"]
[WhiteClock "0:00:44"]
[BlackClock "0:00:09"]

1. d4 {[%clk 0:03:00]}  Nf6 {[%clk 0:02:58]} 2. c4 {[%clk 0:03:01]}  g6 {[%clk 0:02:56]} 3. Nc3 {[%clk 0:03:01]}  d5 {[%clk 0:02:56]} 4. cxd5 {[%clk 0:03:00]}  Nxd5 {[%clk 0:02:57]} 5. e4 {[%clk 0:03:00]}  Nxc3 {[%clk 0:02:57]} 6. bxc3 {[%clk 0:03:01]}  Bg7 {[%clk 0:02:56]} 7. Nf3 {[%clk 0:03:02]}  c5 {[%clk 0:02:55]} 8. Be3 {[%clk 0:03:03]}  Bg4 {[%clk 0:02:53]} 9. Be2 {[%clk 0:02:59]}  Nc6 {[%clk 0:02:46]} 10. d5 {[%clk 0:02:46]}  Bxf3 {[%clk 0:02:35]} 11. gxf3 {[%clk 0:02:29]}  Bxc3+ {[%clk 0:02:29]} 12. Kf1 {[%clk 0:02:29]}  Bxa1 {[%clk 0:02:11]} 13. Qxa1 {[%clk 0:02:30]}  Nd4 {[%clk 0:02:11]} 14. Bxd4 {[%clk 0:02:29]}  cxd4 {[%clk 0:02:11]} 15. Qxd4 {[%clk 0:02:29]}  O-O {[%clk 0:02:07]} 16. h4 {[%clk 0:02:30]}  Qb6 {[%clk 0:01:57]} 17. Qd2 {[%clk 0:02:29]}  h5 {[%clk 0:01:39]} 18. Bc4 {[%clk 0:02:26]}  Rac8 {[%clk 0:01:23]} 19. Bb3 {[%clk 0:02:26]}  Qf6 {[%clk 0:01:13]} 20. f4 {[%clk 0:02:23]}  Qc3 {[%clk 0:01:12]} 21. Qe2 {[%clk 0:02:20]}  Qc1+ {[%clk 0:01:11]} 22. Kg2 {[%clk 0:02:17]}  Qxf4 {[%clk 0:01:11]} 23. Rh3 {[%clk 0:02:15]}  Qg4+ {[%clk 0:01:11]} 24. Qxg4 {[%clk 0:02:15]}  hxg4 {[%clk 0:01:12]} 25. Rg3 {[%clk 0:02:16]}  Kg7 {[%clk 0:00:56]} 26. Rxg4 {[%clk 0:02:10]}  Rh8 {[%clk 0:00:56]} 27. e5 {[%clk 0:02:07]}  Rh5 {[%clk 0:00:51]} 28. Re4 {[%clk 0:02:07]}  g5 {[%clk 0:00:48]} 29. hxg5 {[%clk 0:02:06]}  Rxg5+ {[%clk 0:00:48]} 30. Kf3 {[%clk 0:02:04]}  Rc3+ {[%clk 0:00:35]} 31. Ke2 {[%clk 0:02:04]}  b5 {[%clk 0:00:27]} 32. Kd2 {[%clk 0:01:54]}  Rc5 {[%clk 0:00:26]} 33. f4 {[%clk 0:01:50]}  Rg3 {[%clk 0:00:21]} 34. d6 {[%clk 0:01:40]}  exd6 {[%clk 0:00:22]} 35. exd6 {[%clk 0:01:41]}  Rxb3 {[%clk 0:00:18]} 36. axb3 {[%clk 0:01:40]}  Rd5+ {[%clk 0:00:19]} 37. Kc3 {[%clk 0:00:51]}  Rxd6 {[%clk 0:00:19]} 38. Re7 {[%clk 0:00:52]}  a6 {[%clk 0:00:17]} 39. Ra7 {[%clk 0:00:52]}  Rf6 {[%clk 0:00:17]} 40. Kd3 {[%clk 0:00:47]}  Kg6 {[%clk 0:00:15]} 41. Ke4 {[%clk 0:00:47]}  Re6+ {[%clk 0:00:12]} 42. Kf3 {[%clk 0:00:44]}  Rc6 {[%clk 0:00:12]} 43. b4 {[%clk 0:00:43]}  Rc3+ {[%clk 0:00:08]} 44. Kg4 {[%clk 0:00:41]}  Rc6 {[%clk 0:00:05]} 45. Kf3 {[%clk 0:00:38]}  f6 {[%clk 0:00:05]} 46. Kg4 {[%clk 0:00:37]}  Rd6 {[%clk 0:00:03]} 47. Ra8 {[%clk 0:00:37]}  Rc6 {[%clk 0:00:03]} 48. Ra7 {[%clk 0:00:37]}  Rd6 {[%clk 0:00:03]} 49. Ra8 {[%clk 0:00:36]}  f5+ {[%clk 0:00:03]} 50. Kh4 {[%clk 0:00:36]}  Rd4 {[%clk 0:00:04]} 51. Rxa6+ {[%clk 0:00:36]}  Kf7 {[%clk 0:00:04]} 52. Kg5 {[%clk 0:00:37]}  Rxb4 {[%clk 0:00:05]} 53. Kxf5 {[%clk 0:00:38]}  Rc4 {[%clk 0:00:05]} 54. Rb6 {[%clk 0:00:38]}  Rc5+ {[%clk 0:00:05]} 55. Kg4 {[%clk 0:00:38]}  Kg7 {[%clk 0:00:06]} 56. f5 {[%clk 0:00:39]}  Rd5 {[%clk 0:00:06]} 57. Kg5 {[%clk 0:00:39]}  Rd7 {[%clk 0:00:02]} 58. Rxb5 {[%clk 0:00:39]}  Kf7 {[%clk 0:00:03]} 59. Rb6 {[%clk 0:00:40]}  Ra7 {[%clk 0:00:03]} 60. Rh6 {[%clk 0:00:40]}  Kg7 {[%clk 0:00:03]} 61. f6+ {[%clk 0:00:39]}  Kg8 {[%clk 0:00:03]} 62. Kg6 {[%clk 0:00:40]}  Rg7+ {[%clk 0:00:04]} 63. Kf5 {[%clk 0:00:40]}  Ra7 {[%clk 0:00:04]} 64. Kg6 {[%clk 0:00:40]}  Rg7+ {[%clk 0:00:04]} 65. Kh5 {[%clk 0:00:41]}  Ra7 {[%clk 0:00:04]} 66. Kg5 {[%clk 0:00:40]}  Ra1 {[%clk 0:00:04]} 67. Rh5 {[%clk 0:00:37]}  Rg1+ {[%clk 0:00:04]} 68. Kf5 {[%clk 0:00:37]}  Rf1+ {[%clk 0:00:05]} 69. Kg6 {[%clk 0:00:37]}  Rg1+ {[%clk 0:00:05]} 70. Rg5 {[%clk 0:00:38]}  Rxg5+ {[%clk 0:00:06]} 71. Kxg5 {[%clk 0:00:38]}  Kf7 {[%clk 0:00:06]} 72. Kf5 {[%clk 0:00:39]}  Kf8 {[%clk 0:00:07]} 73. Kg6 {[%clk 0:00:40]}  Kg8 {[%clk 0:00:07]} 74. Kg5 {[%clk 0:00:41]}  Kf7 {[%clk 0:00:07]} 75. Kf5 {[%clk 0:00:41]}  Kf8 {[%clk 0:00:08]} 76. Ke6 {[%clk 0:00:42]}  Ke8 {[%clk 0:00:08]} 77. f7+ {[%clk 0:00:43]}  Kf8 {[%clk 0:00:09]} 78. Kf6 {[%clk 0:00:44]} 1/2-1/2


[Site "https://www.chess.com"]

[Event "Titled Tuesday Blitz August 23 Early 2022"]
[White "Grandelius, Nils"]
[Black "Machidon, Cristi"]
[WhiteFideId "1710400"]
[BlackFideId "13904590"]
[WhiteElo "2617"]
[BlackElo "2312"]
[Result "1-0"]
[Round "04"]
[TimeControl "180+1"]
[Date "2022.08.23"]
[WhiteClock "0:00:05"]
[BlackClock "0:00:00"]

1. Nf3 {[%clk 0:03:00]}  d5 {[%clk 0:03:00]} 2. e3 {[%clk 0:03:01]}  c6 {[%clk 0:03:00]} 3. c4 {[%clk 0:03:01]}  Nf6 {[%clk 0:03:00]} 4. Qc2 {[%clk 0:03:01]}  g6 {[%clk 0:02:59]} 5. b3 {[%clk 0:03:00]}  Bg7 {[%clk 0:02:58]} 6. Bb2 {[%clk 0:03:00]}  O-O {[%clk 0:02:58]} 7. Be2 {[%clk 0:03:01]}  a5 {[%clk 0:02:57]} 8. Nc3 {[%clk 0:02:55]}  Bf5 {[%clk 0:02:53]} 9. d3 {[%clk 0:02:45]}  Na6 {[%clk 0:02:52]} 10. Nd4 {[%clk 0:02:38]}  Bd7 {[%clk 0:02:36]} 11. O-O {[%clk 0:02:26]}  e5 {[%clk 0:02:33]} 12. Nf3 {[%clk 0:02:26]}  Re8 {[%clk 0:02:33]} 13. cxd5 {[%clk 0:02:22]}  cxd5 {[%clk 0:02:32]} 14. Rac1 {[%clk 0:02:16]}  Rc8 {[%clk 0:02:23]} 15. Qb1 {[%clk 0:02:09]}  Bf5 {[%clk 0:02:19]} 16. Nb5 {[%clk 0:02:01]}  Qb6 {[%clk 0:01:46]} 17. a4 {[%clk 0:01:32]}  e4 {[%clk 0:01:43]} 18. Rxc8 {[%clk 0:01:19]}  Rxc8 {[%clk 0:01:41]} 19. Nfd4 {[%clk 0:01:18]}  Bd7 {[%clk 0:01:39]} 20. dxe4 {[%clk 0:01:15]}  Nxe4 {[%clk 0:01:36]} 21. Rd1 {[%clk 0:01:10]}  Nb4 {[%clk 0:01:32]} 22. Bf3 {[%clk 0:00:56]}  Ng5 {[%clk 0:01:11]} 23. Rc1 {[%clk 0:00:39]}  Nxf3+ {[%clk 0:01:06]} 24. Nxf3 {[%clk 0:00:34]}  Rxc1+ {[%clk 0:01:01]} 25. Bxc1 {[%clk 0:00:26]}  Bxb5 {[%clk 0:00:59]} 26. axb5 {[%clk 0:00:27]}  Qxb5 {[%clk 0:00:59]} 27. Bd2 {[%clk 0:00:22]}  Nc6 {[%clk 0:00:57]} 28. Qc2 {[%clk 0:00:20]}  h5 {[%clk 0:00:53]} 29. h3 {[%clk 0:00:20]}  d4 {[%clk 0:00:50]} 30. exd4 {[%clk 0:00:18]}  Qd5 {[%clk 0:00:46]} 31. Qc5 {[%clk 0:00:11]}  Qe4 {[%clk 0:00:16]} 32. d5 {[%clk 0:00:10]}  Nd4 {[%clk 0:00:15]} 33. Qc8+ {[%clk 0:00:08]}  Bf8 {[%clk 0:00:13]} 34. Bh6 {[%clk 0:00:08]}  Nxf3+ {[%clk 0:00:09]} 35. gxf3 {[%clk 0:00:09]}  Qb4 {[%clk 0:00:07]} 36. Bxf8 {[%clk 0:00:06]}  Qxf8 {[%clk 0:00:08]} 37. Qxb7 {[%clk 0:00:07]}  Qd6 {[%clk 0:00:07]} 38. Qa8+ {[%clk 0:00:06]}  Kg7 {[%clk 0:00:06]} 39. Qxa5 {[%clk 0:00:07]}  Qf4 {[%clk 0:00:05]} 40. Qc3+ {[%clk 0:00:06]}  Kh7 {[%clk 0:00:05]} 41. b4 {[%clk 0:00:07]}  Qg5+ {[%clk 0:00:04]} 42. Kf1 {[%clk 0:00:06]}  Qxd5 {[%clk 0:00:05]} 43. h4 {[%clk 0:00:05]}  Qf5 {[%clk 0:00:03]} 44. Qb3 {[%clk 0:00:03]}  Qh3+ {[%clk 0:00:01]} 45. Ke2 {[%clk 0:00:04]}  Qd7 {[%clk 0:00:00]} 46. b5 {[%clk 0:00:04]}  Qe7+ {[%clk 0:00:01]} 47. Kf1 {[%clk 0:00:04]}  Qxh4 {[%clk 0:00:01]} 48. Qxf7+ {[%clk 0:00:04]}  Kh6 {[%clk 0:00:00]} 49. Qf8+ {[%clk 0:00:05]} 1-0


[Site "https://www.chess.com"]

[Event "Titled Tuesday Blitz August 23 Early 2022"]
[White "Hambleton, Aman"]
[Black "Andreikin, Dmitry"]
[WhiteFideId "2606577"]
[BlackFideId "4158814"]
[WhiteElo "2538"]
[BlackElo "2736"]
[Result "0-1"]
[Round "04"]
[TimeControl "180+1"]
[Date "2022.08.23"]
[WhiteClock "0:00:01"]
[BlackClock "0:01:07"]

1. d4 {[%clk 0:03:00]}  Nf6 {[%clk 0:03:00]} 2. c4 {[%clk 0:02:59]}  g6 {[%clk 0:03:00]} 3. Nc3 {[%clk 0:02:59]}  Bg7 {[%clk 0:03:01]} 4. e4 {[%clk 0:02:59]}  O-O {[%clk 0:03:02]} 5. f3 {[%clk 0:02:56]}  c6 {[%clk 0:03:00]} 6. Be3 {[%clk 0:02:51]}  a6 {[%clk 0:03:00]} 7. c5 {[%clk 0:02:26]}  d6 {[%clk 0:02:59]} 8. Nge2 {[%clk 0:02:22]}  a5 {[%clk 0:02:55]} 9. Na4 {[%clk 0:02:13]}  Na6 {[%clk 0:02:54]} 10. Nb6 {[%clk 0:01:43]}  Ra7 {[%clk 0:02:49]} 11. Nc3 {[%clk 0:01:30]}  Nd7 {[%clk 0:02:48]} 12. Nca4 {[%clk 0:01:04]}  Nxb6 {[%clk 0:02:41]} 13. Nxb6 {[%clk 0:00:59]}  dxc5 {[%clk 0:02:39]} 14. dxc5 {[%clk 0:00:59]}  Bxb2 {[%clk 0:02:39]} 15. Rb1 {[%clk 0:00:48]}  Ba3 {[%clk 0:02:36]} 16. Bxa6 {[%clk 0:00:16]}  bxa6 {[%clk 0:02:36]} 17. Qxd8 {[%clk 0:00:14]}  Rxd8 {[%clk 0:02:37]} 18. Ke2 {[%clk 0:00:14]}  Be6 {[%clk 0:02:37]} 19. Rhd1 {[%clk 0:00:11]}  Rxd1 {[%clk 0:02:22]} 20. Rxd1 {[%clk 0:00:08]}  f6 {[%clk 0:02:22]} 21. Rd3 {[%clk 0:00:06]}  Bb2 {[%clk 0:02:23]} 22. a3 {[%clk 0:00:04]}  Be5 {[%clk 0:02:19]} 23. f4 {[%clk 0:00:04]}  Bc7 {[%clk 0:02:19]} 24. h3 {[%clk 0:00:03]}  Kf7 {[%clk 0:02:16]} 25. Kf3 {[%clk 0:00:03]}  f5 {[%clk 0:02:16]} 26. e5 {[%clk 0:00:02]}  Rb7 {[%clk 0:02:15]} 27. g4 {[%clk 0:00:02]}  Rb8 {[%clk 0:02:13]} 28. g5 {[%clk 0:00:02]}  Rh8 {[%clk 0:02:09]} 29. Kg2 {[%clk 0:00:02]}  h6 {[%clk 0:02:09]} 30. h4 {[%clk 0:00:02]}  hxg5 {[%clk 0:02:08]} 31. hxg5 {[%clk 0:00:03]}  Rh4 {[%clk 0:02:07]} 32. Rd2 {[%clk 0:00:03]}  Rg4+ {[%clk 0:02:06]} 33. Kf2 {[%clk 0:00:04]}  Rh4 {[%clk 0:02:03]} 34. Kg2 {[%clk 0:00:04]}  a4 {[%clk 0:01:59]} 35. Rd1 {[%clk 0:00:04]}  Rg4+ {[%clk 0:01:48]} 36. Kf2 {[%clk 0:00:05]}  Rh4 {[%clk 0:01:48]} 37. Kg3 {[%clk 0:00:05]}  Rh8 {[%clk 0:01:48]} 38. Kg2 {[%clk 0:00:04]}  Bb3 {[%clk 0:01:46]} 39. Rd4 {[%clk 0:00:04]}  Ke6 {[%clk 0:01:46]} 40. Rd2 {[%clk 0:00:04]}  Rb8 {[%clk 0:01:34]} 41. Rd3 {[%clk 0:00:04]}  Bd5+ {[%clk 0:01:34]} 42. Kg3 {[%clk 0:00:03]}  Be4 {[%clk 0:01:32]} 43. Rd1 {[%clk 0:00:03]}  Rh8 {[%clk 0:01:32]} 44. Bf2 {[%clk 0:00:02]}  Bc2 {[%clk 0:01:27]} 45. Rc1 {[%clk 0:00:02]}  Bb3 {[%clk 0:01:26]} 46. Be3 {[%clk 0:00:02]}  Rd8 {[%clk 0:01:26]} 47. Kf2 {[%clk 0:00:02]}  Bd1 {[%clk 0:01:25]} 48. Ke1 {[%clk 0:00:02]}  Bf3 {[%clk 0:01:23]} 49. Kf2 {[%clk 0:00:03]}  Be4 {[%clk 0:01:23]} 50. Ke2 {[%clk 0:00:02]}  Rd3 {[%clk 0:01:21]} 51. Rc4 {[%clk 0:00:01]}  Rxa3 {[%clk 0:01:20]} 52. Rxa4 {[%clk 0:00:01]}  Rb3 {[%clk 0:01:15]} 53. Kd2 {[%clk 0:00:01]}  Rd3+ {[%clk 0:01:15]} 54. Ke2 {[%clk 0:00:02]}  Rc3 {[%clk 0:01:15]} 55. Kd2 {[%clk 0:00:02]}  Rd3+ {[%clk 0:01:07]} 56. Ke2 {[%clk 0:00:02]}  Rb3 {[%clk 0:01:08]} 57. Kd2 {[%clk 0:00:02]}  Bd3 {[%clk 0:01:08]} 58. Rd4 {[%clk 0:00:02]}  Bb5 {[%clk 0:01:07]} 59. Bf2 {[%clk 0:00:02]}  a5 {[%clk 0:01:07]} 60. Be3 {[%clk 0:00:02]}  a4 {[%clk 0:01:07]} 61. Nxa4 {[%clk 0:00:02]}  Ba5+ {[%clk 0:01:07]} 62. Kc2 {[%clk 0:00:01]}  Rxe3 {[%clk 0:01:07]} 63. Nb6 {[%clk 0:00:02]}  Re4 {[%clk 0:01:06]} 64. Rxe4 {[%clk 0:00:01]}  fxe4 {[%clk 0:01:07]} 0-1


[Site "https://www.chess.com"]

[Event "Titled Tuesday Blitz August 23 Early 2022"]
[White "Hardaway, Brewington"]
[Black "Deac, Bogdan-Daniel"]
[WhiteFideId "30941849"]
[BlackFideId "1226380"]
[WhiteElo "1813"]
[BlackElo "2648"]
[Result "0-1"]
[Round "04"]
[TimeControl "180+1"]
[Date "2022.08.23"]
[WhiteClock "0:00:26"]
[BlackClock "0:00:55"]

1. e4 {[%clk 0:03:00]}  c6 {[%clk 0:03:00]} 2. d4 {[%clk 0:02:59]}  d5 {[%clk 0:03:00]} 3. e5 {[%clk 0:02:59]}  Bf5 {[%clk 0:03:00]} 4. h4 {[%clk 0:02:59]}  h5 {[%clk 0:03:00]} 5. Bd3 {[%clk 0:02:58]}  Bxd3 {[%clk 0:03:00]} 6. Qxd3 {[%clk 0:02:59]}  e6 {[%clk 0:03:01]} 7. Nd2 {[%clk 0:02:57]}  Nh6 {[%clk 0:02:56]} 8. Ngf3 {[%clk 0:02:55]}  Nf5 {[%clk 0:02:56]} 9. c4 {[%clk 0:02:54]}  Be7 {[%clk 0:02:48]} 10. g3 {[%clk 0:02:43]}  Qa5 {[%clk 0:02:48]} 11. b3 {[%clk 0:02:37]}  Nd7 {[%clk 0:02:40]} 12. O-O {[%clk 0:02:35]}  Qa6 {[%clk 0:02:32]} 13. Qc3 {[%clk 0:02:31]}  O-O {[%clk 0:02:11]} 14. a4 {[%clk 0:02:25]}  c5 {[%clk 0:02:11]} 15. cxd5 {[%clk 0:02:23]}  exd5 {[%clk 0:02:07]} 16. Re1 {[%clk 0:02:02]}  Rac8 {[%clk 0:02:05]} 17. Qb2 {[%clk 0:01:45]}  Qd3 {[%clk 0:01:43]} 18. e6 {[%clk 0:01:12]}  fxe6 {[%clk 0:01:42]} 19. Rxe6 {[%clk 0:01:11]}  cxd4 {[%clk 0:01:41]} 20. Qb1 {[%clk 0:01:05]}  Qxb1 {[%clk 0:01:31]} 21. Rxb1 {[%clk 0:01:06]}  Nc5 {[%clk 0:01:31]} 22. Re5 {[%clk 0:01:04]}  Nd3 {[%clk 0:01:31]} 23. Rxe7 {[%clk 0:01:00]}  Nxe7 {[%clk 0:01:26]} 24. Ba3 {[%clk 0:01:01]}  Rfe8 {[%clk 0:01:25]} 25. Nxd4 {[%clk 0:01:00]}  Nc6 {[%clk 0:01:24]} 26. Nf5 {[%clk 0:00:54]}  Re2 {[%clk 0:01:21]} 27. Nf3 {[%clk 0:00:29]}  Rxf2 {[%clk 0:01:21]} 28. Nd6 {[%clk 0:00:26]}  Rxf3 {[%clk 0:01:18]} 29. Nxc8 {[%clk 0:00:26]}  Rxg3+ {[%clk 0:01:19]} 30. Kh2 {[%clk 0:00:26]}  Rg4 {[%clk 0:01:06]} 31. Rd1 {[%clk 0:00:25]}  Rxh4+ {[%clk 0:00:57]} 32. Kg3 {[%clk 0:00:26]}  Rg4+ {[%clk 0:00:57]} 33. Kf3 {[%clk 0:00:25]}  Nce5+ {[%clk 0:00:56]} 34. Ke3 {[%clk 0:00:25]}  d4+ {[%clk 0:00:56]} 35. Ke2 {[%clk 0:00:24]}  Rg2+ {[%clk 0:00:55]} 36. Kf1 {[%clk 0:00:24]}  Rf2+ {[%clk 0:00:54]} 37. Kg1 {[%clk 0:00:25]}  Nf3+ {[%clk 0:00:55]} 38. Kh1 {[%clk 0:00:26]}  Rh2# {[%clk 0:00:55]} 0-1


[Site "https://www.chess.com"]